Department Family,Entity,Date,Expenses Type,Expense Area,Supplier,Transaction Number, Total 
Department of Health,The Christie NHS Foundation Trust,26/04/2018,Consulting Fees Mar 18,04c Programme Management Offic,AKESO AND COMPANY LIMITED,0000579700," 33,579.27 "
Department of Health,The Christie NHS Foundation Trust,05/04/2018,Drugs,Drugs,ALCURA UK LIMITED,0000579545," 75,908.06 "
Department of Health,The Christie NHS Foundation Trust,26/04/2018,PET Scans - Mar-18,Christie Medical Physics,ALLIANCE MEDICAL LTD,0000580272," 144,970.00 "
Department of Health,The Christie NHS Foundation Trust,05/04/2018,PET Scans - Jan-18,Christie Medical Physics,ALLIANCE MEDICAL LTD,0000576214," 26,316.00 "
Department of Health,The Christie NHS Foundation Trust,05/04/2018,Drugs,Christie Medical Physics,ALLIANCE MEDICAL RADIOPHARMACY LIMITED,0000578554," 37,947.72 "
Department of Health,The Christie NHS Foundation Trust,12/04/2018,Research Project,Research & Development,ANTONI VAN LEEUWENHOEK,0000579180," 33,810.75 "
Department of Health,The Christie NHS Foundation Trust,19/04/2018,Drugs,Drugs,BAXTER HEALTHCARE LTD,0000580086," 302,431.21 "
Department of Health,The Christie NHS Foundation Trust,03/04/2018,Drugs,Drugs,BAXTER HEALTHCARE LTD,0000580322," 336,207.60 "
Department of Health,The Christie NHS Foundation Trust,05/04/2018,Drugs,Drugs,BAXTER HEALTHCARE LTD,0000578410," 522,739.46 "
Department of Health,The Christie NHS Foundation Trust,19/04/2018,Drugs,Drugs,BAXTER HEALTHCARE LTD,0000580081," 27,932.08 "
Department of Health,The Christie NHS Foundation Trust,12/04/2018,Drugs,Drugs,BAXTER HEALTHCARE LTD,0000578433," 297,236.80 "
Department of Health,The Christie NHS Foundation Trust,19/04/2018,Drugs,Drugs,BAXTER HEALTHCARE LTD,0000579447," 369,814.33 "
Department of Health,The Christie NHS Foundation Trust,05/04/2018,Drugs,Drugs,BOLTON NHS FOUNDATION TRUST,0000575423," 30,724.82 "
Department of Health,The Christie NHS Foundation Trust,26/04/2018,Annual Maintenance Cover,Clin Support & Spec Surgery,CARESTREAM HEALTH UK LTD,0000580348," 33,823.00 "
Department of Health,The Christie NHS Foundation Trust,12/04/2018,PET Scans - Feb 18,Christie Medical Physics,CENTRAL MCR  UNIV HOSP NHS FOUNDATION TR,0000578335," 96,516.00 "
Department of Health,The Christie NHS Foundation Trust,12/04/2018,Medical Equipment Maintenance Contract,Clin Support & Spec Surgery,CPP FACILITIES LLP,0000579217," 172,856.77 "
Department of Health,The Christie NHS Foundation Trust,05/04/2018,Oncology Services Mar-18,Network Services,EAST CHESHIRE NHS TRUST,0000578615," 43,097.75 "
Department of Health,The Christie NHS Foundation Trust,05/04/2018,Oncology Services Feb-18,Network Services,EAST CHESHIRE NHS TRUST,0000578621," 43,097.75 "
Department of Health,The Christie NHS Foundation Trust,05/04/2018,Drugs,Drugs,EAST CHESHIRE NHS TRUST,0000578123," 89,407.52 "
Department of Health,The Christie NHS Foundation Trust,12/04/2018,Drugs,Drugs,EAST CHESHIRE NHS TRUST,0000576594," 135,397.70 "
Department of Health,The Christie NHS Foundation Trust,19/04/2018,Energy Contract PBT  Mar-18,Network Services,EDF ENERGY,0000580684," 38,771.90 "
Department of Health,The Christie NHS Foundation Trust,19/04/2018,Childcare Voucher - Apr 18,Human Resources,FIDELITI LIMITED,0000581035," 32,783.62 "
Department of Health,The Christie NHS Foundation Trust,05/04/2018,Childcare Voucher - Mar 18,Human Resources,FIDELITI LIMITED,0000579505," 33,900.01 "
Department of Health,The Christie NHS Foundation Trust,19/04/2018,Proton Beam Development (PBT),Capital,INTERSERVE CONSTRUCTION LTD,0000580933," 175,045.28 "
Department of Health,The Christie NHS Foundation Trust,26/04/2018,Proton Beam Development (PBT),Capital,INTERSERVE CONSTRUCTION LTD,0000581694," 2,085,787.41 "
Department of Health,The Christie NHS Foundation Trust,05/04/2018,Drugs,Drugs,LLOYDSPHARMACY CLINICAL HOMECARE,0000579521," 44,488.40 "
Department of Health,The Christie NHS Foundation Trust,12/04/2018,Drugs,Drugs,LLOYDSPHARMACY CLINICAL HOMECARE,0000580683," 31,585.00 "
Department of Health,The Christie NHS Foundation Trust,09/04/2018,Rates 18/19,Estates & Facilities,M/CR CITY COUNCIL (RATES) DD,0000580422," 76,012.54 "
Department of Health,The Christie NHS Foundation Trust,19/04/2018,Proton Beam Development (PBT),Capital,MACE LTD,0000579244," 26,895.00 "
Department of Health,The Christie NHS Foundation Trust,19/04/2018,Proton Beam Development (PBT),Capital,MACE LTD,0000576813," 27,155.00 "
Department of Health,The Christie NHS Foundation Trust,05/04/2018,MAHSC SUBSCRIPTION FOR YEAR 17/18,Research & Development,MANCHESTER ACADEMIC HEALTH SCIENCE CENT,0000566592," 188,000.00 "
Department of Health,The Christie NHS Foundation Trust,19/04/2018,Building Works - Paterson,Estates & Facilities,MC CONSTRUCTION COMPANY LIMITED,0000579017," 52,199.94 "
Department of Health,The Christie NHS Foundation Trust,19/04/2018,Medical Equipment,Capital,MCSA GROUP LTD,0000580099," 1,123,507.92 "
Department of Health,The Christie NHS Foundation Trust,05/04/2018,Drugs,Drugs,MID CHESHIRE HOSPITALS NHS FT,0000571784," 83,043.24 "
Department of Health,The Christie NHS Foundation Trust,05/04/2018,Blood Products,Network Services,NHS BLOOD AND TRANSPLANT,0000576934," 32,260.19 "
Department of Health,The Christie NHS Foundation Trust,05/04/2018,Blood Products,Network Services,NHS BLOOD AND TRANSPLANT,0000575357," 27,438.16 "
Department of Health,The Christie NHS Foundation Trust,16/04/2018,Blood Products,Network Services,NHS BLOOD AND TRANSPLANT,0000581077," 182,293.80 "
Department of Health,The Christie NHS Foundation Trust,16/04/2018,NHS Litigation (NHSLA),Finance & Business Development,NHS LITIGATION AUTHORITY,0000581204," 93,092.10 "
Department of Health,The Christie NHS Foundation Trust,12/04/2018,Health Campaign,GM Cancer Vanguard,NHS MANCHESTER CCG,0000575739," 128,000.00 "
Department of Health,The Christie NHS Foundation Trust,26/04/2018,Medical Equipment,Capital,NHS SUPPLY CHAIN,0000579743," 1,564,057.67 "
Department of Health,The Christie NHS Foundation Trust,05/04/2018,Stock for all Wards & Departments,All Wards and Departments,NHS SUPPLY CHAIN,0000579802," 68,565.03 "
Department of Health,The Christie NHS Foundation Trust,19/04/2018,Stock for all Wards & Departments,All Wards and Departments,NHS SUPPLY CHAIN,0000581017," 47,386.23 "
Department of Health,The Christie NHS Foundation Trust,26/04/2018,Stock for all Wards & Departments,All Wards and Departments,NHS SUPPLY CHAIN,0000581509," 41,670.81 "
Department of Health,The Christie NHS Foundation Trust,26/04/2018,Medical Equipment,Clin Support & Spec Surgery,NHS SUPPLY CHAIN,0000578738," 26,751.00 "
Department of Health,The Christie NHS Foundation Trust,26/04/2018,Medical Equipment,Capital,PHYSIO-CONTROL UK SALES LTD,0000581470," 31,262.40 "
Department of Health,The Christie NHS Foundation Trust,19/04/2018,Software Licences,Capital,SOFTCAT PLC,0000579649," 26,000.00 "
Department of Health,The Christie NHS Foundation Trust,12/04/2018,Drugs,Drugs,THE CHRISTIE CLINIC (HCA),0000570173," 34,842.00 "
Department of Health,The Christie NHS Foundation Trust,12/04/2018,Cancer Vanguard,GM Cancer Vanguard,THE PENNINE ACUTE HOSPITAL NHS TRUST,0000577625," 72,000.00 "
Department of Health,The Christie NHS Foundation Trust,12/04/2018,Medical Equipment,Capital,TRUSTCO LTD,0000571728," 25,127.04 "
Department of Health,The Christie NHS Foundation Trust,05/04/2018,Medical Research,GM Cancer Vanguard,"UNI CONSULTING, UNIQUE IMPROVEMEMTS LTD",0000579924," 37,500.00 "
Department of Health,The Christie NHS Foundation Trust,05/04/2018,Broadband Services,Finance & Business Development,VIRGIN MEDIA BUSINESS,0000572959," 31,576.80 "
